bitfinex-derivatives/quotes_ETHF0:USTF0_20250116
["timestamp","ask_amount","ask_price","bid_price","bid_amount"]
[1737039412480,3.2078,3279.8,3279.2,3.2078]
[1737039412678,3.2078,3280.2,3279.0,3.2078]
[1737039412885,0.60997,3279.9,3279.3,0.61007]
[1737039413077,3.33119325,3280.1,3278.8,4.6256]
[1737039413580,3.2078,3280.2,3279.4,0.61006]
[1737039413581,0.60997,3280.0,3279.4,0.61006]
[1737039413887,3.2078,3279.8,3279.1,40.8]
[1737039414078,3.2078,3279.8,3279.0,3.2078]
[1737039414582,3.2078,3279.8,3279.1,40.8]
[1737039414777,3.2078,3280.2,3279.7,0.61001]
[1737039414973,3.2078,3280.2,3279.4,3.2078]
[1737039414974,0.60994,3280.1,3279.4,3.2078]
[1737039415279,3.2078,3280.7,3279.4,3.2078]
[1737039415482,0.60984,3280.4,3279.9,0.60992]
[1737039415778,3.81759,3280.7,3280.1,0.60988]
[1737039415977,3.81759,3280.7,3280.0,1.505]
[1737039415978,3.2078,3280.7,3280.2,6.51533672]
[1737039416176,3.2078,3280.7,3280.3,0.60985]
[1737039416783,0.60975,3280.9,3280.4,0.60983]
[1737039416982,3.81756,3280.9,3280.3,0.60984]
[1737039417175,0.60976,3280.9,3280.3,0.60984]
[1737039417383,3.2078,3281.0,3280.2,3.2078]
[1737039417573,0.60979,3280.7,3280.2,3.2078]
[1737039417777,0.60981,3280.6,3280.1,4.6388]
[1737039417977,3.2078,3281.0,3280.1,5.24869]
[1737039418183,3.2078,3280.6,3280.1,4.6388]
[1737039418489,3.2078,3280.6,3279.8,3.2078]
[1737039418682,3.2078,3280.6,3279.9,0.60992]
[1737039418982,3.2078,3280.6,3279.8,3.2078]
[1737039419181,0.60988,3280.2,3279.8,3.2078]
[1737039419381,3.2078,3280.6,3279.8,3.2078]
[1737039419782,0.61,3279.5,3279.4,3.2078]
[1737039419975,3.2078,3280.2,3279.4,3.2078]
[1737039420375,0.60983,3280.4,3280.0,0.6099]
[1737039420580,3.2078,3280.8,3279.8,3.2078]
[1737039421091,3.2078,3280.8,3279.9,0.60991]
[1737039421385,3.2078,3280.8,3280.3,0.60984]
[1737039421583,7.9436,3281.9,3280.7,3.2078]
[1737039421778,7.9436,3281.9,3281.1,3.2078]
[1737039422085,0.6095,3282.2,3281.8,0.60956]
[1737039422386,3.33490354,3282.6,3282.0,0.60952]
[1737039422582,3.33490354,3282.6,3282.0,0.60953]
[1737039422780,0.60945,3282.5,3281.9,3.2078]
[1737039422976,0.60943,3282.6,3282.1,0.6095]
[1737039423177,4.488,3282.7,3281.9,3.2078]
[1737039423178,0.60952,3282.1,3281.9,3.2078]
[1737039423377,3.43281125,3282.5,3281.5,4.7128]
[1737039423579,4.488,3282.7,3281.5,4.7128]
[1737039423781,7.7128,3283.3,3282.0,3.2078]
[1737039423981,4.505,3283.3,3282.5,3.2078]
[1737039424188,0.60926,3283.5,3283.2,3.2078]
[1737039424380,4.6071,3283.9,3283.2,3.2078]
[1737039424582,6.6771245,3283.8,3282.8,3.2078]
[1737039424884,3.2078,3283.8,3282.8,3.2078]
[1737039425093,0.60942,3282.6,3282.5,1.505]
[1737039425891,3.2078,3283.0,3282.5,1.505]
[1737039426090,0.60942,3282.7,3282.5,1.505]
[1737039426285,3.2078,3283.0,3282.5,1.505]
[1737039426491,0.60942,3282.6,3282.5,1.505]
[1737039426686,0.6095,3282.2,3282.1,3.2078]
[1737039426989,3.50505005,3282.6,3281.5,3.2078]
[1737039427196,3.2078,3282.6,3281.9,3.2078]
[1737039427491,4.9026,3283.3,3282.3,3.2078]
[1737039427686,9.33788,3283.9,3282.4,4.7128]
[1737039427886,12.2752,3283.9,3282.8,3.2078]
[1737039428087,3.2078,3283.4,3282.8,3.2078]
[1737039428287,3.2078,3283.4,3282.4,4.7128]
[1737039428493,9.0674,3283.9,3283.0,3.2078]
[1737039428787,0.60924,3283.6,3283.0,44.61713]
[1737039428990,9.0674,3283.9,3283.0,44.0078]
[1737039429191,9.0674,3283.9,3283.2,0.60931]
[1737039429393,9.0674,3283.9,3283.1,0.60932]
[1737039429589,0.60921,3283.8,3283.2,0.6093]
[1737039429791,0.60922,3283.7,3283.2,0.6093]
[1737039429988,0.60922,3283.7,3283.0,3.2078]
[1737039430187,0.60928,3283.4,3283.0,3.2078]
[1737039430389,9.0674,3283.9,3283.0,3.2078]
[1737039430591,3.19072816,3283.8,3283.0,3.2078]
[1737039430890,3.2078,3284.0,3283.4,3.2078]
[1737039431093,3.2078,3284.0,3283.5,2.11425]
[1737039431294,3.2078,3284.0,3283.5,1.505]
[1737039431489,3.2078,3284.6,3283.8,3.2078]
[1737039431695,15.86147,3285.0,3283.5,1.505]
[1737039431696,0.60924,3283.6,3283.5,1.505]
[1737039432093,3.2078,3283.8,3283.5,1.505]
[1737039432292,3.2078,3284.7,3283.8,0.60919]
[1737039432490,0.60908,3284.5,3283.9,0.60917]
[1737039432695,0.60915,3284.1,3283.6,0.60923]
[1737039432893,0.60908,3284.5,3283.9,0.60918]
[1737039433100,0.60911,3284.3,3283.8,0.6092]
[1737039433301,3.2078,3284.3,3283.5,4.7128]
[1737039433501,3.2078,3284.3,3283.1,3.2078]
[1737039433695,0.60922,3283.8,3283.4,1.505]
[1737039433894,3.2078,3284.3,3283.4,1.505]
[1737039434311,3.2078,3283.5,3282.6,3.2078]
[1737039434602,0.60946,3282.4,3282.3,1.504]
[1737039434794,3.2078,3283.0,3282.0,1.504]
[1737039435191,0.30625602,3282.8,3282.0,1.504]
[1737039435396,0.60946,3282.4,3282.0,1.504]
[1737039435796,0.60949,3282.3,3282.0,1.504]
[1737039436003,3.2078,3282.6,3282.0,1.504]
[1737039436198,0.60948,3282.3,3282.0,1.504]
[1737039436397,3.2078,3282.6,3282.0,1.504]
[1737039436903,3.2078,3283.0,3282.1,6.51533672]
[1737039437203,0.08352182,3282.9,3282.2,1.505]
[1737039437409,0.60956,3281.9,3281.6,4.7128]
[1737039437594,0.60959,3281.7,3281.6,3.2078]
[1737039437793,4.7882,3282.4,3281.6,3.2078]
[1737039438105,0.60952,3282.1,3281.6,3.8174]
[1737039438298,0.60952,3282.1,3281.7,1.505]
[1737039438498,0.60949,3282.3,3281.8,0.60956]
[1737039438706,4.7882,3282.4,3282.0,0.60952]
[1737039438899,4.7882,3282.4,3282.0,3.2078]
[1737039439098,0.60945,3282.5,3282.0,0.60952]
[1737039439400,3.2078,3283.0,3282.0,0.60953]
[1737039439601,3.2078,3282.6,3281.9,3.2078]
[1737039439905,0.60951,3282.1,3281.7,1.505]
[1737039440107,0.60957,3281.8,3281.7,1.505]
[1737039440707,0.60968,3281.2,3281.1,3.2078]
[1737039440902,0.60965,3281.4,3281.1,3.2078]
[1737039441101,15.66267,3282.0,3281.1,3.2078]
[1737039441102,14.1388,3282.0,3281.1,3.2078]
[1737039441312,0.60965,3281.4,3281.1,3.2078]
[1737039441503,0.60965,3281.4,3280.7,11.24793672]
[1737039442008,0.60963,3281.5,3281.0,0.60971]
[1737039442204,14.1388,3282.0,3281.3,3.2078]
[1737039442509,0.60965,3281.4,3281.3,3.2078]
[1737039443606,0.60967,3281.3,3280.9,1.505]
[1737039443810,14.1388,3282.0,3280.9,1.505]
[1737039444009,14.1388,3282.0,3281.2,3.2078]
[1737039444304,3.40788167,3282.9,3281.7,3.30753672]
[1737039444508,3.40788167,3282.9,3282.2,3.2078]
[1737039444704,3.40788167,3283.0,3282.3,1.505]
[1737039444903,0.60946,3282.4,3282.3,1.505]
[1737039445311,6.93758525,3283.0,3282.3,1.505]
[1737039445312,3.2078,3282.8,3282.3,1.505]
[1737039445809,3.40788167,3283.0,3282.3,1.505]
[1737039446009,3.40788167,3283.9,3282.7,3.30753672]
[1737039446208,3.40788167,3283.9,3283.2,3.30753672]
[1737039446517,0.6092,3283.8,3283.4,3.81706]
[1737039446807,0.60921,3283.8,3283.3,1.505]
[1737039447007,3.40788167,3283.9,3283.3,1.505]
[1737039447218,0.60927,3283.4,3283.3,1.505]
[1737039447415,3.2078,3284.0,3283.3,1.505]
[1737039447609,3.2078,3284.0,3283.3,4.7128]
[1737039448413,0.60916,3284.1,3283.6,0.60923]
[1737039448609,4.73043,3284.6,3283.3,4.7128]
[1737039448813,3.2078,3284.6,3283.7,3.2078]
[1737039449110,3.2078,3284.6,3283.7,6.51533672]
[1737039449318,0.60908,3284.5,3284.0,0.60915]
[1737039449513,3.2078,3284.6,3283.7,6.51533672]
[1737039450111,3.2078,3284.6,3283.7,3.2078]
[1737039450716,3.81686,3284.6,3283.7,6.51533672]
[1737039450904,3.2078,3285.0,3284.2,3.2078]
[1737039451106,3.2078,3285.0,3284.8,0.60901]
[1737039451306,3.2078,3285.7,3284.7,3.2078]
[1737039451518,6.12204889,3286.3,3285.2,6.51533672]
[1737039451519,8.29488167,3286.2,3285.2,6.51533672]
[1737039451716,8.90364167,3286.2,3285.7,3.2078]
[1737039452017,3.40788167,3286.2,3285.7,6.51533672]
[1737039452317,3.40788167,3286.2,3286.1,3.81657]
[1737039452708,3.40788167,3286.2,3286.1,3.2078]
[1737039452910,4.6432,3286.7,3286.1,3.2078]
[1737039453114,3.2078,3286.3,3285.5,3.2078]
[1737039453309,3.2078,3285.9,3285.2,1.503]
[1737039453520,3.2078,3285.5,3285.2,1.503]
[1737039453712,0.60892,3285.3,3285.2,1.503]
[1737039453915,3.2078,3285.5,3284.9,1.503]
[1737039453916,0.60899,3285.0,3284.9,1.503]
[1737039454108,3.2078,3285.5,3284.9,1.503]
[1737039454310,4.8028,3285.8,3285.1,3.2078]
[1737039454509,0.60887,3285.6,3285.1,3.2078]
[1737039454722,3.2078,3286.3,3285.5,3.2078]
[1737039455016,3.46778053,3286.5,3285.5,3.2078]
[1737039455214,3.46778053,3286.5,3285.9,3.2078]
[1737039455512,0.60873,3286.4,3286.0,1.503]
[1737039455820,0.60865,3286.8,3286.1,0.60876]
[1737039456017,0.60864,3286.9,3286.2,0.60875]
[1737039456319,0.6087,3286.5,3286.0,4.7108]
[1737039456614,3.2078,3287.0,3286.0,1.503]
[1737039457015,0.08332118,3286.9,3286.0,1.503]
[1737039457616,0.08332118,3286.9,3286.1,1.503]
[1737039457617,0.60875,3286.3,3286.1,1.503]
[1737039457817,3.2078,3286.6,3286.1,1.503]
[1737039458016,3.2078,3286.6,3286.2,0.60874]
[1737039458214,1.52126,3287.6,3286.1,1.503]
[1737039458215,3.2078,3287.0,3286.1,1.503]
[1737039458414,0.60863,3286.9,3286.2,0.60874]
[1737039458614,3.81641,3287.0,3286.4,0.60871]
[1737039458817,9.6906,3287.4,3286.3,3.2078]
[1737039459016,0.60845,3287.9,3287.2,0.60857]
[1737039459217,3.2078,3288.1,3287.3,4.81053672]
[1737039459525,4.9458,3288.2,3287.3,4.81053672]
[1737039459526,8.13046727,3288.2,3287.8,3.2078]
[1737039459824,8.13046727,3288.2,3287.4,3.2078]
[1737039459825,4.9458,3288.2,3287.4,3.2078]
[1737039460016,0.60842,3288.1,3287.4,3.2078]
[1737039460217,0.60846,3287.8,3287.4,3.2078]
[1737039460721,0.60851,3287.5,3287.4,3.2078]
[1737039460912,3.2078,3287.6,3286.9,1.503]
[1737039461112,4.9458,3288.2,3286.9,1.503]
[1737039461113,0.60861,3287.0,3286.9,1.503]
[1737039461314,3.2078,3287.2,3286.9,1.503]
[1737039461619,0.60852,3287.5,3286.9,2.11161]
[1737039461820,0.60847,3287.8,3287.2,0.60856]
[1737039462013,3.2078,3287.9,3287.1,0.60858]
[1737039462323,3.2078,3287.9,3287.0,3.2078]
[1737039462520,0.60848,3287.7,3287.1,0.60858]
[1737039462722,3.2078,3288.3,3287.4,3.2078]
[1737039462920,0.6084,3288.1,3287.6,0.60848]
[1737039463222,3.2078,3288.3,3287.4,6.51533672]
[1737039463419,3.2078,3288.3,3287.8,3.2078]
[1737039463723,3.2078,3288.9,3287.9,4.81053672]
[1737039464122,0.39853239,3288.8,3287.9,4.81053672]
[1737039464320,3.2078,3288.9,3287.9,4.81053672]
[1737039464521,3.2078,3288.9,3287.9,1.503]
[1737039464722,4.85057689,3288.8,3287.9,1.503]
[1737039464918,0.6084,3288.1,3288.0,1.502]
[1737039465424,3.2078,3288.5,3288.0,1.502]
[1737039465815,0.60838,3288.3,3288.0,1.502]
[1737039466018,3.2078,3288.9,3288.0,1.502]
[1737039466324,0.60834,3288.5,3288.0,2.11042]
[1737039466513,3.28099372,3288.8,3288.0,4.7098]
[1737039466717,0.60829,3288.8,3288.0,4.7098]
[1737039466928,3.2078,3288.9,3288.0,4.7098]
[1737039468530,4.95909021,3288.8,3288.0,3.2078]
[1737039468828,0.6084,3288.1,3288.0,1.502]
[1737039469125,3.8162,3288.1,3288.0,1.502]
[1737039469725,0.60848,3287.7,3287.6,1.502]
[1737039469931,0.60847,3287.8,3287.6,1.502]
[1737039470220,1.52083,3288.5,3287.6,1.502]
[1737039470426,4.7286,3288.6,3287.6,1.502]
[1737039470631,3.2078,3288.2,3287.6,1.502]
[1737039471027,0.60848,3287.7,3287.6,1.502]
[1737039471224,3.2078,3287.8,3287.1,3.2078]
[1737039471420,0.60864,3286.8,3286.7,3.2078]
[1737039471725,0.60862,3286.9,3286.4,1.502]
[1737039471922,3.2078,3287.0,3286.4,1.502]
[1737039472225,0.60866,3286.8,3286.4,1.502]
[1737039472428,3.2078,3287.0,3286.2,3.2078]
[1737039472625,1.52157,3286.9,3286.2,3.2078]
[1737039472825,1.52157,3286.9,3285.9,3.30753672]
[1737039472826,3.2078,3286.6,3285.9,3.30753672]
[1737039473037,0.60875,3286.2,3286.1,1.502]
[1737039473236,3.2078,3286.2,3285.6,3.2078]
[1737039473538,3.2078,3285.7,3285.1,1.502]
[1737039474126,0.60889,3285.5,3285.1,1.502]
[1737039474326,0.60893,3285.3,3285.1,1.502]
[1737039474521,3.2078,3285.7,3285.1,1.502]
[1737039474730,3.2078,3285.7,3285.3,3.81671]
[1737039474928,3.2078,3285.7,3285.3,3.2078]
[1737039475128,3.2078,3285.7,3284.8,40.8]
[1737039475326,0.60899,3285.0,3284.9,1.502]
[1737039475521,3.21336313,3285.6,3284.4,3.30753672]
[1737039475522,0.60904,3284.7,3284.4,3.30753672]
[1737039475829,3.2078,3285.3,3284.5,1.502]
[1737039476027,14.3349,3285.6,3284.5,1.502]
[1737039476225,3.2078,3285.7,3285.3,3.2078]
[1737039476433,3.81666,3285.7,3285.4,1.502]
[1737039476733,3.2078,3285.7,3285.4,1.502]
[1737039476929,0.60888,3285.5,3285.4,1.502]
[1737039477230,3.2078,3286.2,3285.4,1.502]
[1737039477431,0.60886,3285.7,3285.4,1.502]
[1737039477928,3.2078,3286.2,3285.4,1.502]
[1737039478130,0.60887,3285.6,3285.4,1.502]
[1737039478326,3.2078,3286.2,3285.4,1.502]
[1737039478832,0.60888,3285.6,3285.4,1.502]
[1737039479031,0.60888,3285.5,3285.4,1.502]
[1737039479227,2.13101,3285.7,3285.1,1.502]
[1737039479426,0.60894,3285.2,3285.1,1.502]
[1737039480133,3.2078,3285.8,3285.1,1.502]
[1737039480529,4.79860587,3285.7,3284.8,3.2078]
[1737039480728,4.79860587,3285.7,3285.1,0.60895]
[1737039480729,0.60887,3285.6,3285.1,0.60895]
[1737039481120,4.8622,3285.7,3284.9,1.502]
[1737039481330,3.44857054,3285.5,3284.9,4.7098]
[1737039481523,0.60898,3285.0,3284.9,3.2078]
[1737039481729,7.7244,3285.4,3284.5,1.502]
[1737039482234,3.44857054,3285.3,3285.1,3.2078]
[1737039482437,3.2078,3285.8,3285.2,3.30753672]
[1737039483033,3.2078,3286.2,3285.5,3.2078]
[1737039483235,0.60885,3285.7,3285.6,1.502]
[1737039483527,3.2078,3286.2,3285.3,1.502]
[1737039483528,6.58102029,3286.2,3285.3,1.502]
[1737039483737,0.60886,3285.7,3285.3,1.502]
[1737039484033,3.2078,3286.2,3285.5,3.2078]
[1737039484226,0.60885,3285.7,3285.4,44.0078]
[1737039484428,3.2078,3286.2,3285.4,3.2078]
[1737039484635,0.60877,3286.1,3285.7,3.30753672]
[1737039484837,3.2078,3286.7,3286.0,3.2078]
[1737039485031,1.52143,3287.3,3286.3,3.30753672]
[1737039485228,3.2078,3286.7,3285.6,3.2078]
[1737039485435,0.60884,3285.8,3285.7,1.502]
[1737039485730,0.60883,3285.8,3285.7,1.502]
[1737039485935,3.2078,3286.3,3285.7,2.11084]
[1737039486136,3.2078,3286.3,3285.8,0.60883]
[1737039486325,3.2078,3286.3,3285.7,1.502]
[1737039486531,3.2078,3287.1,3286.0,6.51533672]
[1737039486744,0.60873,3286.4,3286.0,6.51533672]
[1737039487039,3.2078,3287.1,3286.0,6.51533672]
[1737039487637,0.60872,3286.5,3286.1,0.60877]
[1737039487829,0.60872,3286.5,3286.0,6.51533672]
[1737039488035,3.2078,3287.1,3286.0,6.51533672]
[1737039488231,1.52152,3287.0,3286.0,6.51533672]
[1737039488436,0.60871,3286.5,3286.0,7.12411672]
[1737039488636,4.91915562,3287.0,3286.0,6.51533672]
[1737039488830,0.60871,3286.5,3286.0,7.12411672]
[1737039489032,1.52152,3287.0,3286.0,6.51533672]
[1737039489238,0.60875,3286.2,3286.1,1.502]
[1737039489534,1.52166,3286.8,3286.1,1.502]
[1737039489739,2.90849632,3287.0,3286.1,1.502]
[1737039489740,1.38696632,3287.0,3286.1,1.502]
[1737039489934,0.60866,3286.8,3286.4,3.2078]
[1737039490129,0.6087,3286.5,3286.4,3.2078]
[1737039490333,3.2078,3287.1,3286.4,3.2078]
[1737039491136,3.2078,3286.7,3286.1,1.502]
[1737039491330,3.21478882,3287.0,3286.5,3.30753672]
[1737039491532,3.2078,3287.5,3286.7,3.2078]
[1737039491937,0.60853,3287.4,3287.0,0.6086]
[1737039492135,0.60858,3287.2,3286.8,2.11063]
[1737039492344,3.2078,3287.5,3286.8,1.502]
[1737039492640,0.60862,3286.9,3286.8,1.502]
[1737039493032,0.60875,3286.3,3286.0,6.51533672]
[1737039493338,0.60886,3285.7,3285.6,4.7098]
[1737039493533,3.2078,3286.1,3284.8,4.69163848]
[1737039493732,3.2078,3286.1,3284.9,1.502]
[1737039493733,0.60898,3285.0,3284.9,1.502]
[1737039493938,0.60899,3284.9,3284.8,4.69163848]
[1737039494359,0.60899,3284.9,3284.8,1.03337848]
[1737039494360,0.66459412,3284.9,3284.8,1.03337848]
[1737039494640,0.66459412,3284.9,3284.3,11.7290962]
[1737039494641,4.56900412,3284.9,3284.3,11.7290962]
[1737039494839,0.60921,3283.8,3283.5,3.30753672]
[1737039495041,0.60925,3283.5,3283.4,1.502]
[1737039495242,0.60925,3283.6,3283.4,1.502]
[1737039495543,3.33925982,3284.3,3283.4,4.7098]
[1737039495742,0.60912,3284.3,3283.7,0.60921]
[1737039495948,0.60912,3284.3,3283.8,3.2078]
[1737039496141,3.2078,3284.5,3284.0,3.30753672]
[1737039496445,3.2078,3284.9,3284.3,0.60911]
[1737039496642,2.28423854,3284.6,3284.4,1.502]
[1737039496849,0.60911,3284.3,3284.2,1.502]
[1737039497044,0.60918,3283.9,3283.8,3.2078]
[1737039497235,3.2078,3284.2,3283.1,1.502]
[1737039497543,3.81708,3283.4,3283.0,1.502]
[1737039497736,1.57853477,3284.1,3283.0,1.502]
[1737039497737,3.2078,3283.8,3283.0,4.80953672]
[1737039497944,3.34685473,3284.2,3283.5,3.2078]
[1737039498146,3.81694,3284.2,3283.5,7.12458672]
[1737039498336,0.60916,3284.1,3283.5,3.2078]
[1737039498542,3.81693,3284.2,3283.5,3.81705]
[1737039498743,3.2078,3284.2,3283.7,0.60921]
[1737039498945,3.2078,3284.2,3283.8,1.502]
[1737039499148,2.28423854,3284.7,3284.1,3.2078]
[1737039499344,3.2078,3284.8,3283.8,1.502]
[1737039499649,3.2078,3284.8,3284.0,3.2078]
[1737039499850,0.60906,3284.6,3284.0,3.81696]
[1737039500044,2.28423854,3285.0,3284.0,3.2078]
[1737039500250,2.28423854,3285.0,3284.1,3.30753672]
[1737039500556,0.60899,3284.9,3284.1,3.30753672]
[1737039500848,0.60904,3284.7,3284.1,3.30753672]
[1737039501040,0.60905,3284.6,3284.1,3.30753672]
[1737039501246,1.52245,3285.0,3284.0,3.2078]
[1737039501448,0.60899,3284.9,3284.0,3.2078]
[1737039501655,0.60908,3284.5,3284.0,3.2078]
[1737039501951,3.2078,3284.7,3283.9,40.8]
[1737039502142,3.2078,3284.7,3283.6,6.51533672]
[1737039502342,3.2078,3284.7,3283.7,1.502]
[1737039502546,1.55025925,3285.0,3283.8,1.502]
[1737039502547,0.60912,3284.2,3283.8,1.502]
[1737039502854,3.2078,3284.3,3283.8,1.502]
[1737039503153,0.60918,3283.9,3283.8,1.502]
[1737039503945,3.2078,3284.3,3283.6,1.503]
[1737039504248,0.60922,3283.7,3283.6,1.503]
[1737039504646,4.4981,3284.2,3283.6,1.503]
[1737039504847,3.2078,3283.9,3283.1,3.30753672]
[1737039505043,0.60941,3282.7,3282.6,1.503]
[1737039505349,1.52319,3283.4,3282.6,1.503]
[1737039505549,0.60938,3282.9,3282.6,1.503]
[1737039505746,0.60927,3283.4,3282.6,4.81053672]
[1737039506055,3.2078,3283.5,3283.2,3.30753672]
[1737039506351,0.60938,3282.9,3282.7,3.30753672]
[1737039506649,3.2078,3283.0,3282.7,3.30753672]
[1737039506852,0.60938,3282.8,3282.7,3.30753672]
[1737039507050,3.81716,3283.0,3282.7,3.30753672]
[1737039507253,1.52302,3283.8,3282.7,3.30753672]
[1737039507254,3.2078,3283.7,3282.7,3.30753672]
[1737039507653,3.2078,3283.3,3282.7,3.30753672]
[1737039507853,0.60934,3283.1,3282.8,3.2078]
[1737039508050,0.60937,3282.9,3282.8,3.2078]
[1737039508257,3.2078,3283.3,3282.7,3.30753672]
[1737039508556,0.60937,3282.9,3282.8,3.2078]
[1737039508759,0.60937,3282.9,3281.7,1.52396]
[1737039508760,3.2078,3283.3,3282.1,3.30753672]
[1737039509053,3.2078,3283.3,3282.6,3.30753672]
[1737039509054,0.60939,3282.8,3282.6,3.30753672]
[1737039509255,0.6094,3282.7,3282.6,3.30753672]
[1737039509761,2.13259,3283.2,3282.4,3.2078]
[1737039509955,1.52333,3283.1,3282.4,3.2078]
[1737039510162,0.60945,3282.5,3282.3,3.30753672]
[1737039510357,3.2078,3282.9,3282.3,3.30753672]
[1737039510358,0.60946,3282.4,3282.3,3.30753672]
[1737039510558,1.52351,3282.7,3282.3,1.503]
[1737039510761,0.60946,3282.4,3282.3,1.503]
[1737039511064,4.73143,3282.5,3281.9,1.503]
[1737039511272,3.81733,3282.0,3281.9,1.503]
[1737039511858,4.7925,3282.6,3281.9,1.503]
[1737039511859,3.2078,3282.4,3281.9,1.503]
[1737039512059,0.60948,3282.3,3281.9,1.503]
[1737039512260,3.2078,3282.4,3281.9,1.503]
[1737039512573,0.60942,3282.7,3282.2,0.60949]
[1737039512870,0.60937,3282.9,3282.1,3.2078]
[1737039513064,3.2078,3283.2,3282.1,3.2078]
[1737039513270,1.52333,3283.1,3282.1,3.2078]
[1737039513472,0.60949,3282.3,3282.1,3.2078]
[1737039513767,1.52351,3282.7,3282.0,4.8646]
[1737039513967,0.6094,3282.7,3282.0,4.8646]
[1737039514164,1.52352,3282.7,3281.9,1.503]
[1737039514363,0.60952,3282.1,3281.9,1.503]
[1737039514568,0.6095,3282.2,3281.9,1.503]
[1737039514968,0.60951,3282.1,3281.9,1.503]
[1737039515166,1.52352,3282.7,3281.7,3.2078]
[1737039515368,0.60956,3281.9,3281.8,1.503]
[1737039515670,0.60957,3281.9,3281.7,4.7108]
[1737039515877,0.60957,3281.8,3281.7,4.7108]
[1737039516082,0.60957,3281.8,3281.7,1.503]
[1737039516363,0.60964,3281.4,3281.3,3.2078]
[1737039516566,0.60964,3281.4,3281.3,4.7108]
[1737039516766,0.60964,3281.4,3281.3,1.503]
[1737039518570,7.80804,3282.4,3280.6,4.8179]
[1737039518571,0.60977,3280.7,3280.6,4.8179]
[1737039518770,3.2078,3280.7,3280.0,3.2078]
[1737039518973,3.2078,3280.7,3279.7,12.801]
[1737039518974,3.5422285,3280.7,3279.7,12.801]
[1737039519268,3.5422285,3280.7,3279.8,1.503]
[1737039519466,0.60992,3279.9,3279.8,1.503]
[1737039520868,3.2078,3280.3,3279.8,1.503]
[1737039521073,0.60991,3280.0,3279.8,1.503]
[1737039521263,0.60988,3280.2,3279.8,2.11293]
[1737039521462,3.2078,3280.3,3279.8,1.503]
[1737039521463,0.60992,3280.0,3279.8,1.503]
[1737039521663,0.60989,3280.2,3279.8,1.503]
[1737039521871,3.2078,3280.3,3279.8,1.503]
[1737039522068,0.60982,3280.5,3280.1,0.60988]
[1737039522374,3.2078,3280.8,3280.0,1.504]
[1737039522767,3.81757,3280.8,3280.3,0.60984]
[1737039522976,0.60978,3280.7,3280.1,0.60989]
[1737039523270,0.60979,3280.7,3280.4,3.2078]
[1737039523470,4.5276,3281.0,3280.4,3.2078]
[1737039524065,0.6098,3280.6,3280.0,4.7118]
[1737039524270,4.5276,3281.0,3280.0,4.7118]
[1737039524476,0.60976,3280.8,3280.4,3.2078]
[1737039524865,0.60978,3280.7,3280.4,3.2078]
[1737039525178,3.2078,3281.2,3280.4,3.2078]
[1737039525465,3.2078,3281.2,3280.0,3.02876]
[1737039525466,0.60969,3281.2,3280.8,3.81755]
[1737039525674,0.60965,3281.4,3281.0,0.60971]
[1737039525971,3.2078,3281.6,3280.9,42.304]
[1737039526166,0.60963,3281.5,3281.0,0.60972]
[1737039526367,3.2078,3281.6,3280.9,1.504]
[1737039526568,3.2078,3281.6,3281.2,3.2078]
[1737039526875,3.2078,3281.6,3281.2,3.81747]
[1737039527070,3.2078,3281.6,3281.2,3.2078]
[1737039527369,7.8337,3282.4,3281.2,3.2078]
[1737039527576,4.6259,3282.4,3281.6,3.2078]
[1737039527877,12.31,3283.0,3282.0,3.2078]
[1737039528084,0.60958,3281.8,3281.5,3.2078]
[1737039528268,0.6096,3281.7,3281.5,3.2078]
[1737039528576,3.2078,3282.2,3281.5,3.2078]
[1737039528874,4.5341,3282.9,3282.1,3.2078]
[1737039528875,0.60944,3282.6,3282.1,3.2078]
[1737039529069,7.7419,3282.9,3282.2,1.504]
[1737039529268,0.60943,3282.6,3282.2,1.504]
[1737039529469,0.60942,3282.6,3282.2,1.504]
[1737039529767,7.7419,3282.9,3282.2,1.504]
[1737039530068,0.60933,3283.2,3282.2,1.504]
[1737039530268,0.60939,3282.8,3282.2,1.504]
[1737039530475,3.2078,3283.1,3282.3,0.60948]
[1737039530675,0.6094,3282.8,3282.3,0.60947]
[1737039530976,3.2078,3283.1,3282.3,0.60948]
[1737039531368,1.52319,3283.4,3282.2,1.504]
[1737039531369,3.2078,3282.7,3282.2,1.504]
[1737039531571,3.2078,3282.7,3282.3,1.504]
[1737039531871,0.60945,3282.5,3282.4,1.504]
[1737039532070,0.60947,3282.4,3282.3,1.504]
[1737039532469,3.2078,3282.7,3282.1,1.504]
[1737039532776,0.60951,3282.2,3282.1,1.504]
[1737039532983,3.2078,3282.3,3281.3,4.577]
[1737039533274,0.6096,3281.7,3281.4,1.504]
[1737039533673,3.2078,3281.8,3281.4,1.504]
[1737039534279,3.81738,3281.8,3281.4,1.504]
[1737039534682,0.60959,3281.7,3281.4,1.504]
[1737039534973,3.2078,3281.8,3281.4,1.504]
[1737039535176,3.81737,3281.8,3281.4,1.504]
[1737039535366,3.2078,3281.8,3281.4,1.504]
[1737039535675,3.2078,3281.8,3280.0,1.504]
[1737039535676,3.39241888,3281.7,3280.0,1.504]
[1737039535875,0.60982,3280.5,3280.0,2.1139]
[1737039536072,3.2078,3280.8,3280.0,1.504]
[1737039536279,0.60988,3280.2,3280.0,1.504]